bitfinex-derivatives/quotes_BTCF0:USTF0_20250912
["timestamp","ask_amount","ask_price","bid_price","bid_amount"]
[1757710403375,0.42349304,116390.0,116380.0,1.86833469]
[1757710405579,0.40199304,116390.0,116380.0,1.86833469]
[1757710405782,0.04119304,116390.0,116380.0,1.86833469]
[1757710410183,0.04119304,116390.0,116380.0,1.04661469]
[1757710410382,0.04119304,116390.0,116380.0,1.86701469]
[1757710412285,0.02731304,116390.0,116380.0,2.22781469]
[1757710412785,0.02723244,116390.0,116380.0,2.22781469]
[1757710412989,0.02723244,116390.0,116380.0,1.40741469]
[1757710413191,0.02723244,116390.0,116380.0,2.22717469]
[1757710413391,4e-05,116390.0,116380.0,2.47717469]
[1757710413588,0.44402281,116410.0,116380.0,2.56304429]
[1757710413890,0.49320992,116410.0,116400.0,0.42461469]
[1757710414083,0.49320992,116410.0,116400.0,1.85417469]
[1757710415487,0.49420992,116410.0,116400.0,1.85417469]
[1757710418090,0.49420992,116410.0,116400.0,1.03461469]
[1757710418299,0.49420992,116410.0,116400.0,1.85281469]
[1757710418591,0.49420992,116410.0,116400.0,1.43438]
[1757710418792,0.49420992,116410.0,116400.0,1.85281469]
[1757710420301,0.13340992,116410.0,116400.0,1.85281469]
[1757710421095,0.13340992,116410.0,116400.0,0.61618]
[1757710421299,0.13340992,116410.0,116400.0,1.03461469]
[1757710424101,0.13340992,116410.0,116400.0,1.85269469]
[1757710426312,0.13340992,116410.0,116400.0,1.85189469]
[1757710426713,0.13340992,116410.0,116400.0,1.43346]
[1757710426914,0.13340992,116410.0,116400.0,1.85189469]
[1757710429517,0.11142992,116410.0,116400.0,1.85189469]
[1757710429724,0.09845992,116410.0,116400.0,1.85575469]
[1757710430022,0.09845992,116410.0,116400.0,1.85189469]
[1757710430215,0.11169992,116410.0,116400.0,1.85189469]
[1757710431217,0.09845992,116410.0,116400.0,1.85189469]
[1757710431413,0.09845992,116410.0,116400.0,1.03461469]
[1757710431617,0.11136992,116410.0,116400.0,1.85041469]
[1757710432127,0.13319992,116410.0,116400.0,1.85041469]
[1757710433227,0.13319992,116410.0,116400.0,1.85013469]
[1757710433430,0.13319992,116410.0,116400.0,1.03461469]
[1757710434029,0.10599281,116410.0,116400.0,1.84993469]
[1757710434231,0.13317541,116410.0,116400.0,1.84993469]
[1757710434532,0.13317541,116410.0,116400.0,0.61618]
[1757710434732,0.13317541,116410.0,116400.0,1.03461469]
[1757710435230,0.88345364,116410.0,116400.0,0.89513646]
[1757710435626,1.55905541,116410.0,116400.0,1.03461469]
[1757710438028,0.74397541,116410.0,116400.0,1.03461469]
[1757710438231,1.55817541,116410.0,116400.0,0.61618]
[1757710438419,1.55817541,116410.0,116400.0,1.03461469]
[1757710439133,1.55817541,116410.0,116400.0,0.61618]
[1757710439330,1.55817541,116410.0,116400.0,1.03461469]
[1757710440130,1.55817541,116410.0,116400.0,0.61618]
[1757710440331,1.55817541,116410.0,116400.0,1.03461469]
[1757710441630,1.55817541,116410.0,116400.0,0.61618]
[1757710441928,1.55817541,116410.0,116400.0,1.03461469]
[1757710442936,1.55817541,116410.0,116400.0,0.61618]
[1757710443134,1.83713187,116410.0,116380.0,0.51752123]
[1757710443337,0.53501823,116400.0,116390.0,0.14565823]
[1757710443536,0.56220083,116400.0,116390.0,0.84513646]
[1757710444341,1.2368826,116400.0,116390.0,0.98461469]
[1757710445533,1.2369226,116400.0,116390.0,0.56618]
[1757710445733,0.4227626,116400.0,116390.0,0.56618]
[1757710445940,0.4227626,116400.0,116390.0,0.98461469]
[1757710446241,1.2369226,116400.0,116390.0,0.98461469]
[1757710446742,1.2369226,116400.0,116390.0,0.98561469]
[1757710447541,0.4227626,116400.0,116390.0,0.98561469]
[1757710447838,0.0619626,116400.0,116390.0,0.98561469]
[1757710448146,0.4227626,116400.0,116390.0,0.98561469]
[1757710448840,0.4227626,116400.0,116390.0,0.56718]
[1757710449040,0.4227626,116400.0,116390.0,0.98561469]
[1757710451345,0.4227626,116400.0,116390.0,0.56718]
[1757710451545,0.4227626,116400.0,116390.0,0.98561469]
[1757710451946,1.2369226,116400.0,116390.0,0.98561469]
[1757710452646,1.2369226,116400.0,116390.0,0.56718]
[1757710452947,1.2369226,116400.0,116390.0,0.98561469]
[1757710454449,1.2369626,116400.0,116390.0,0.98561469]
[1757710458448,1.2369626,116400.0,116390.0,0.7531492]
[1757710458948,1.2369626,116400.0,116390.0,0.9391184]
[1757710461349,1.2369226,116400.0,116390.0,0.9391184]
[1757710462842,1.2369226,116400.0,116390.0,0.7531492]
[1757710463953,1.2369226,116400.0,116390.0,0.9391184]
[1757710465847,1.2369226,116400.0,116390.0,0.56718]
[1757710466145,1.2369226,116400.0,116390.0,0.9391184]
[1757710466854,1.2369226,116400.0,116390.0,0.56718]
[1757710467358,1.2369226,116400.0,116390.0,0.7531492]
[1757710469657,1.2369226,116400.0,116390.0,0.56718]
[1757710469955,1.2369226,116400.0,116390.0,0.7531492]
[1757710471153,1.2369226,116400.0,116390.0,0.56718]
[1757710471754,1.2369226,116400.0,116390.0,0.7531492]
[1757710472357,1.2369226,116400.0,116390.0,0.56718]
[1757710472654,1.2369226,116400.0,116390.0,0.7531492]
[1757710473454,0.4227626,116400.0,116390.0,0.7531492]
[1757710473757,1.2368026,116400.0,116390.0,0.7531492]
[1757710475359,0.4227626,116400.0,116390.0,0.7531492]
[1757710475560,1.2368026,116400.0,116390.0,0.7531492]
[1757710480561,1.4227718,116400.0,116390.0,0.561]
[1757710480761,1.6727718,116400.0,116390.0,0.001]
[1757710481565,1.6727718,116400.0,116390.0,0.1869692]
[1757710481867,1.6726518,116400.0,116390.0,0.1869692]
[1757710482362,1.6726118,116400.0,116390.0,0.1869692]
[1757710483066,1.6726118,116400.0,116390.0,0.001]
[1757710483266,1.6726118,116400.0,116390.0,0.1869692]
[1757710483961,1.6454292,116400.0,116390.0,0.1869692]
[1757710484167,1.67273937,116400.0,116390.0,0.1869692]
[1757710485068,1.48677017,116400.0,116390.0,0.1869692]
[1757710485869,1.48677017,116400.0,116390.0,0.1931492]
[1757710486370,0.67289017,116400.0,116390.0,0.1931492]
[1757710486570,1.48673017,116400.0,116390.0,0.1931492]
[1757710486871,1.48673017,116400.0,116390.0,0.00718]
[1757710487071,1.48673017,116400.0,116390.0,0.1931492]
[1757710487566,1.48673017,116400.0,116390.0,0.001]
[1757710487772,1.67269937,116400.0,116390.0,0.1869692]
[1757710490680,1.67269937,116400.0,116390.0,0.001]
[1757710490882,1.67269937,116400.0,116390.0,0.1869692]
[1757710491384,1.67621534,116400.0,116390.0,0.1869692]
[1757710491683,1.70351266,116400.0,116390.0,0.1869692]
[1757710493786,1.70351266,116400.0,116390.0,0.001]
[1757710493984,1.51754346,116400.0,116390.0,0.001]
[1757710494287,1.70351266,116400.0,116390.0,0.1869692]
[1757710494789,1.70351266,116400.0,116390.0,0.001]
[1757710494981,1.70351266,116400.0,116390.0,0.1869692]
[1757710496787,1.51754346,116400.0,116390.0,0.1869692]
[1757710497084,1.70351266,116400.0,116390.0,0.1869692]
[1757710497482,1.70351266,116400.0,116390.0,0.001]
[1757710497687,1.88948186,116400.0,116390.0,0.001]
[1757710497891,0.03451,116380.0,116370.0,0.20936151]
[1757710498084,1.42209652,116380.0,116370.0,0.82936151]
[1757710498284,1.23612732,116380.0,116370.0,0.82936151]
[1757710498488,1.23612732,116380.0,116370.0,0.82318151]
[1757710498989,1.23612732,116380.0,116370.0,0.82936151]
[1757710499190,1.23612732,116380.0,116370.0,0.83436151]
[1757710504090,0.42260732,116380.0,116370.0,0.83436151]
[1757710504293,1.23604732,116380.0,116370.0,0.83436151]
[1757710504894,0.42260732,116380.0,116370.0,0.83436151]
[1757710505090,1.23596732,116380.0,116370.0,0.64839231]
[1757710505291,1.23596732,116380.0,116370.0,0.83436151]
[1757710505596,1.23596732,116380.0,116370.0,0.64839231]
[1757710506094,1.23596732,116380.0,116370.0,0.83436151]
[1757710507095,1.23612673,116380.0,116370.0,0.83436151]
[1757710507895,0.42276673,116380.0,116370.0,0.83436151]
[1757710508098,1.23604673,116380.0,116370.0,0.83436151]
[1757710508593,1.23608673,116380.0,116370.0,0.83436151]
[1757710508797,1.23608673,116380.0,116370.0,0.63118]
[1757710508988,1.23608673,116380.0,116370.0,0.8171492]
[1757710509887,1.60802513,116380.0,116370.0,0.625]
[1757710510195,1.67205593,116380.0,116370.0,0.625]
[1757710510396,2.03285593,116380.0,116370.0,0.625]
[1757710510598,1.03360673,116380.0,116370.0,0.64831962]
[1757710510798,1.84684673,116380.0,116370.0,0.83428882]
[1757710510991,0.31200673,116380.0,116370.0,0.64831962]
[1757710511293,1.84684673,116380.0,116370.0,0.64831962]
[1757710511497,1.84684673,116380.0,116370.0,0.83428882]
[1757710515398,1.84684673,116380.0,116370.0,0.625]
[1757710515704,2.03281593,116380.0,116370.0,0.8109692]
[1757710517602,2.03281593,116380.0,116370.0,0.625]
[1757710517805,2.03281593,116380.0,116370.0,0.8109692]
[1757710519703,2.03281593,116380.0,116370.0,0.625]
[1757710519704,1.78281593,116380.0,116370.0,0.625]
[1757710519902,1.96878513,116380.0,116370.0,0.625]
[1757710520489,2.0464054,116380.0,116370.0,0.76457751]
[1757710521103,1.90682789,116380.0,116370.0,0.76457751]
[1757710521304,1.62759287,116380.0,116370.0,0.77075751]
[1757710521603,1.76717038,116380.0,116370.0,0.90415502]
[1757710521796,1.90674789,116380.0,116370.0,0.76457751]
[1757710522097,1.90674789,116380.0,116370.0,0.625]
[1757710522303,1.90674789,116380.0,116370.0,0.76457751]
[1757710523803,1.62759287,116380.0,116370.0,0.76457751]
[1757710524303,1.90674789,116380.0,116370.0,0.76457751]
[1757710524597,1.62759287,116380.0,116370.0,0.76457751]
[1757710524803,0.81443287,116380.0,116370.0,0.63118]
[1757710525004,0.81443287,116380.0,116370.0,0.91033502]
[1757710525005,1.76713038,116380.0,116370.0,0.91033502]
[1757710525207,1.76713038,116380.0,116370.0,0.63118]
[1757710525506,1.76713038,116380.0,116370.0,0.91033502]
[1757710526001,1.76713038,116380.0,116370.0,0.90415502]
[1757710526199,1.76713038,116380.0,116370.0,0.625]
[1757710526404,1.90670789,116380.0,116370.0,0.76457751]
[1757710526704,1.90670789,116380.0,116370.0,0.625]
[1757710527102,1.90670789,116380.0,116370.0,0.76457751]
[1757710527303,1.76713038,116380.0,116370.0,0.76457751]
[1757710528206,0.95401038,116380.0,116370.0,0.76457751]
[1757710528505,1.62751287,116380.0,116370.0,0.76457751]
[1757710528704,1.76709038,116380.0,116370.0,0.76457751]
[1757710529509,1.76709038,116380.0,116370.0,0.625]
[1757710529711,1.76709038,116380.0,116370.0,0.76457751]
[1757710531111,1.81335671,116380.0,116370.0,0.76457751]
[1757710532513,1.76709038,116380.0,116370.0,0.76457751]
[1757710533014,1.90666789,116380.0,116370.0,0.76457751]
[1757710534315,1.95293422,116380.0,116370.0,0.76457751]
[1757710534509,2.09251173,116380.0,116370.0,0.625]
[1757710535212,2.0462454,116380.0,116370.0,0.625]
[1757710535414,2.09251173,116380.0,116370.0,0.625]
[1757710536811,2.0462454,116380.0,116370.0,0.625]
[1757710537513,1.6737792,116380.0,116370.0,0.625]
[1757710537816,2.09251173,116380.0,116370.0,0.625]
[1757710538224,2.22102629,116380.0,116370.0,0.625]
[1757710539020,1.80229376,116380.0,116370.0,0.625]
[1757710539220,2.22102629,116380.0,116370.0,0.625]
[1757710539414,2.19020015,116380.0,116370.0,0.625]
[1757710541222,2.22103808,116380.0,116370.0,0.625]
[1757710542517,2.22103808,116380.0,116370.0,0.005]
[1757710542723,0.03485,116360.0,116350.0,0.13957751]
[1757710543023,1.51510175,116360.0,116350.0,0.66957751]
[1757710543318,1.87590175,116360.0,116350.0,0.91957751]
[1757710543823,1.87590175,116360.0,116350.0,0.784]
[1757710544421,1.8877931,116360.0,116350.0,0.789]
[1757710544621,1.95528792,116360.0,116350.0,0.92857751]
[1757710544821,1.95528792,116360.0,116350.0,0.94275751]
[1757710544822,0.8632929,116360.0,116350.0,0.94275751]
[1757710545021,1.81567041,116360.0,116350.0,1.08233502]
[1757710545925,1.81567041,116360.0,116350.0,0.80318]
[1757710546220,1.81567041,116360.0,116350.0,0.94275751]
[1757710546426,1.81567041,116360.0,116350.0,0.80318]
[1757710546625,1.81567041,116360.0,116350.0,0.94275751]
[1757710547528,1.6760929,116360.0,116350.0,0.94275751]
[1757710547728,1.81567041,116360.0,116350.0,0.94275751]
[1757710548127,1.81567041,116360.0,116350.0,0.92857751]
[1757710549632,1.81567041,116360.0,116350.0,0.789]
[1757710549826,1.81567041,116360.0,116350.0,0.92857751]
[1757710550132,1.81563041,116360.0,116350.0,0.94275751]
[1757710550629,1.8464688,116360.0,116350.0,0.92857751]
[1757710550833,1.70685129,116360.0,116350.0,0.94275751]
[1757710551018,1.8464288,116360.0,116350.0,0.94275751]
[1757710552233,1.8464288,116360.0,116350.0,0.80318]
[1757710552531,1.8464288,116360.0,116350.0,0.94275751]
[1757710552832,1.98600631,116360.0,116350.0,0.94275751]
[1757710553336,1.95516792,116360.0,116350.0,0.789]
[1757710553521,2.12558382,116360.0,116350.0,0.539]
[1757710554926,2.14563187,116360.0,116350.0,0.539]
[1757710555335,1.33291187,116360.0,116350.0,0.539]
[1757710555536,2.14555187,116360.0,116350.0,0.539]
[1757710555934,2.14555187,116360.0,116350.0,0.535]
[1757710556135,1.72681934,116360.0,116350.0,0.535]
[1757710556336,2.14555187,116360.0,116350.0,0.535]
[1757710556537,1.33291187,116360.0,116350.0,0.535]
[1757710556836,2.14551187,116360.0,116350.0,0.535]
[1757710557634,2.14551187,116360.0,116350.0,0.53]
[1757710557834,1.72777934,116360.0,116350.0,0.53]
[1757710558035,2.14651187,116360.0,116350.0,0.53]
[1757710558229,2.14664263,116360.0,116350.0,0.53]
[1757710558433,2.14660263,116360.0,116350.0,0.53]
[1757710560434,2.14660263,116360.0,116350.0,0.66957751]
[1757710560435,1.33404263,116360.0,116350.0,0.66957751]
[1757710560637,1.69699171,116360.0,116350.0,0.82333502]
[1757710560826,1.83656922,116360.0,116350.0,0.82333502]
[1757710561031,1.02404922,116360.0,116350.0,0.68375751]
[1757710561230,1.83652922,116360.0,116350.0,0.68375751]
[1757710561940,1.97610673,116360.0,116350.0,0.53]
[1757710562139,1.97610673,116360.0,116350.0,0.66957751]
[1757710564542,2.00694512,116360.0,116350.0,0.66957751]
[1757710564746,1.97610673,116360.0,116350.0,0.66957751]
[1757710567151,2.11568424,116360.0,116350.0,0.53]
[1757710567351,2.14652263,116360.0,116350.0,0.53]
[1757710569159,1.7277901,116360.0,116350.0,0.53]
[1757710569349,2.14652263,116360.0,116350.0,0.53]
[1757710570555,2.14632263,116360.0,116350.0,0.53]
[1757710571147,2.14632263,116360.0,116350.0,0.66957751]
[1757710571747,2.14632263,116360.0,116350.0,0.53]
[1757710572359,1.33404263,116360.0,116350.0,0.53]
[1757710572654,2.14628263,116360.0,116350.0,0.53]
[1757710572860,0.03633,116350.0,116340.0,0.29333502]
[1757710573154,0.56416424,116350.0,116340.0,0.91333502]
[1757710573351,0.42458673,116350.0,116340.0,0.91333502]
[1757710573753,0.56416424,116350.0,116340.0,0.77375751]
[1757710573953,0.56416424,116350.0,116340.0,0.91333502]
[1757710574253,0.56416424,116350.0,116340.0,0.63418]
[1757710574763,0.56416424,116350.0,116340.0,0.77375751]
[1757710574953,0.56416424,116350.0,116340.0,0.63418]
[1757710575153,0.56416424,116350.0,116340.0,0.77375751]
[1757710575661,1.23674673,116350.0,116340.0,1.30291253]
[1757710575959,1.37632424,116350.0,116340.0,0.88418]
[1757710576159,1.37632424,116350.0,116340.0,1.16333502]
[1757710577052,1.37632424,116350.0,116340.0,0.88418]
[1757710577253,1.37632424,116350.0,116340.0,1.16333502]
[1757710577560,0.56416424,116350.0,116340.0,1.16333502]
[1757710577761,1.37624424,116350.0,116340.0,1.16333502]
[1757710580063,1.37624424,116350.0,116340.0,0.88418]
[1757710580363,1.42282382,116350.0,116340.0,1.07033709]
[1757710581066,1.23579125,116350.0,116340.0,1.07033709]
[1757710581254,1.26662964,116350.0,116340.0,1.07033709]
[1757710582264,1.23579125,116350.0,116340.0,1.07033709]
[1757710582667,1.26662964,116350.0,116340.0,0.88418]
[1757710582964,1.26662964,116350.0,116340.0,1.07033709]
[1757710583465,1.26642964,116350.0,116340.0,1.07033709]
[1757710583867,1.45258673,116350.0,116340.0,0.88418]
[1757710584068,1.26642964,116350.0,116340.0,1.07033709]
[1757710584565,0.45454964,116350.0,116340.0,1.07033709]
[1757710584868,1.23555125,116350.0,116340.0,1.07033709]
[1757710585566,1.23555125,116350.0,116340.0,0.88418]
[1757710585866,1.23555125,116350.0,116340.0,1.07033709]
[1757710590363,0.42371125,116350.0,116340.0,0.82033709]
[1757710590566,1.23539125,116350.0,116340.0,1.27372695]
[1757710592372,1.23539125,116350.0,116340.0,0.90141277]
[1757710592667,1.23539125,116350.0,116340.0,1.27372695]
[1757710594766,1.23539125,116350.0,116340.0,1.08756986]
[1757710596064,1.42154834,116350.0,116340.0,0.83756986]
[1757710596267,1.42154834,116350.0,116340.0,0.63418]
[1757710596470,1.42154834,116350.0,116340.0,0.62]
[1757710596862,1.42154834,116350.0,116340.0,0.63558]
[1757710597063,1.42154834,116350.0,116340.0,0.82173709]
[1757710597574,1.42154834,116350.0,116340.0,0.63558]
[1757710598875,1.23539125,116350.0,116340.0,0.62]
[1757710599074,0.42371125,116350.0,116340.0,0.63558]
[1757710599279,0.87443125,116350.0,116340.0,1.00789418]
[1757710599477,0.87443125,116350.0,116340.0,1.02534095]
[1757710599673,1.23523125,116350.0,116340.0,1.02534095]
[1757710599874,1.23523125,116350.0,116340.0,0.83918386]
[1757710601381,1.42138834,116350.0,116340.0,0.83918386]
[1757710601775,1.42138834,116350.0,116340.0,0.63558]
[1757710601977,1.42138834,116350.0,116340.0,0.82173709]
[1757710603483,1.23523125,116350.0,116340.0,0.82173709]
[1757710603983,1.42138834,116350.0,116340.0,0.82173709]
[1757710605180,1.42138834,116350.0,116340.0,0.83919128]
[1757710605382,1.23523125,116350.0,116340.0,0.83919128]
[1757710605582,1.42138834,116350.0,116340.0,0.83919128]
[1757710606086,1.42138834,116350.0,116340.0,0.62]
[1757710606283,0.87541293,116350.0,116340.0,0.63558]
[1757710606584,1.06157002,116350.0,116340.0,0.63558]
[1757710607188,1.42237002,116350.0,116340.0,0.63558]
[1757710608587,1.23621293,116350.0,116340.0,0.63558]
[1757710608880,1.42237002,116350.0,116340.0,0.63558]
[1757710617285,1.42237002,116350.0,116340.0,0.62]
[1757710617693,1.42237002,116350.0,116340.0,0.63558]
[1757710620696,1.39393161,116350.0,116340.0,0.63558]
[1757710620900,1.42237468,116350.0,116340.0,0.63558]
[1757710621792,1.42237468,116350.0,116340.0,0.62]
[1757710622001,1.45321307,116350.0,116340.0,0.62]
[1757710622998,1.45309307,116350.0,116340.0,0.63558]
[1757710623198,1.45309307,116350.0,116340.0,0.62]
[1757710623693,1.45309307,116350.0,116340.0,0.63558]
[1757710625298,1.45309307,116350.0,116340.0,0.62]
[1757710629897,0.01372,116340.0,116330.0,0.18615709]
[1757710630095,0.61228016,116340.0,116330.0,0.54558]
[1757710630399,0.61228016,116340.0,116330.0,0.73173709]
[1757710630901,0.61228016,116340.0,116330.0,0.54558]
[1757710631201,0.61228016,116340.0,116330.0,0.73273709]
[1757710631396,0.25148016,116340.0,116330.0,0.73273709]
[1757710631796,0.06532307,116340.0,116330.0,0.54658]
[1757710631993,0.25148016,116340.0,116330.0,0.73273709]
[1757710632198,0.25148016,116340.0,116330.0,0.531]
[1757710632199,0.79843725,116340.0,116330.0,0.531]
[1757710632603,0.82927564,116340.0,116330.0,0.531]
[1757710632807,0.82927564,116340.0,116330.0,0.532]
[1757710633601,0.82927564,116340.0,116330.0,0.54758]
[1757710634002,0.45696146,116340.0,116330.0,0.54758]
[1757710634204,0.82927564,116340.0,116330.0,0.54758]
[1757710634409,0.82927564,116340.0,116330.0,0.532]
[1757710635213,0.45696146,116340.0,116330.0,0.532]
[1757710635417,1.26543273,116340.0,116330.0,0.532]
[1757710635620,1.26543273,116340.0,116330.0,0.497]
[1757710635815,1.26543273,116340.0,116330.0,0.002]
[1757710637115,1.93686197,116340.0,116330.0,0.002]
[1757710638020,1.90602358,116340.0,116330.0,0.002]
[1757710638214,1.93686111,116340.0,116330.0,0.002]
[1757710639218,1.91027734,116340.0,116330.0,0.002]
[1757710639416,2.09643443,116340.0,116330.0,0.002]
[1757710639714,0.03688,116310.0,116300.0,0.04074822]
[1757710639919,1.42360016,116310.0,116300.0,0.65074822]
[1757710640517,1.23744307,116310.0,116300.0,0.65074822]
[1757710640716,1.65662425,116310.0,116300.0,0.62763822]
[1757710640913,0.87664307,116310.0,116300.0,0.65074822]
[1757710641108,1.29582425,116310.0,116300.0,0.65074822]
[1757710641309,1.29582425,116310.0,116300.0,0.61]
[1757710641521,1.65662425,116310.0,116300.0,0.61]
[1757710642309,1.90662425,116310.0,116300.0,0.004]
[1757710642516,0.03519,116280.0,116270.0,0.16116706]
[1757710642716,0.98627706,116280.0,116270.0,0.74116706]
[1757710642924,1.34707706,116280.0,116270.0,0.74116706]
[1757710643417,1.69440931,116280.0,116270.0,0.60144]
[1757710643914,1.55468225,116280.0,116270.0,0.60144]
[1757710644121,1.58282757,116280.0,116270.0,0.60144]
[1757710644819,1.72255463,116280.0,116270.0,0.58]
[1757710645019,1.73335101,116280.0,116270.0,0.58]
[1757710645214,1.73335101,116280.0,116270.0,0.581]
[1757710645215,1.37255101,116280.0,116270.0,0.581]
[1757710645718,0.14300983,116280.0,116270.0,0.581]
[1757710645921,0.70734395,116280.0,116270.0,0.60244]
[1757710647327,1.06814395,116280.0,116270.0,0.60244]
[1757710647524,0.50380983,116280.0,116270.0,0.60244]
[1757710647723,1.45497689,116280.0,116270.0,0.88189412]
[1757710648025,1.45497689,116280.0,116270.0,0.74216706]
[1757710649523,0.64353689,116280.0,116270.0,0.74216706]
[1757710649724,1.45501689,116280.0,116270.0,0.74216706]
[1757710651525,1.45501689,116280.0,116270.0,0.60244]
[1757710651927,1.45501689,116280.0,116270.0,0.74216706]
[1757710652126,1.31528983,116280.0,116270.0,0.74216706]
[1757710652330,1.45501689,116280.0,116270.0,0.74216706]
[1757710652627,1.31528983,116280.0,116270.0,0.74216706]
[1757710652825,1.45501689,116280.0,116270.0,0.74216706]
[1757710654128,1.59474395,116280.0,116270.0,0.74216706]
[1757710654328,1.62557389,116280.0,116270.0,0.74216706]
[1757710655127,1.62557389,116280.0,116270.0,0.60244]
[1757710655322,1.62557389,116280.0,116270.0,0.74216706]
[1757710655522,1.62557389,116280.0,116270.0,0.60244]
[1757710655729,1.62557389,116280.0,116270.0,0.74216706]
[1757710656427,1.62557389,116280.0,116270.0,0.60244]
[1757710656630,1.62557389,116280.0,116270.0,0.74216706]
[1757710657530,1.62557389,116280.0,116270.0,0.60244]
[1757710657826,1.62557389,116280.0,116270.0,0.74216706]
[1757710658224,1.67184022,116280.0,116270.0,0.60244]
[1757710658423,1.67184022,116280.0,116270.0,0.74216706]
[1757710659227,1.64101028,116280.0,116270.0,0.74216706]
[1757710660930,1.64101028,116280.0,116270.0,0.60244]
[1757710661124,1.64101028,116280.0,116270.0,0.74216706]
[1757710661631,1.36155616,116280.0,116270.0,0.74216706]
[1757710661831,1.64101028,116280.0,116270.0,0.74216706]
[1757710662331,1.59474395,116280.0,116270.0,0.74216706]
[1757710662530,1.59474395,116280.0,116270.0,0.60244]
[1757710662731,1.45501689,116280.0,116270.0,0.74216706]
[1757710663031,1.73447101,116280.0,116270.0,0.74216706]
[1757710663224,1.73447101,116280.0,116270.0,0.60244]
[1757710663834,1.73447101,116280.0,116270.0,0.581]
[1757710664234,1.79615945,116280.0,116270.0,0.581]
[1757710664733,1.37697827,116280.0,116270.0,0.581]
[1757710664934,1.79615945,116280.0,116270.0,0.60244]
[1757710665231,1.79615945,116280.0,116270.0,0.581]
[1757710665830,1.37697827,116280.0,116270.0,0.581]
[1757710666032,1.79623945,116280.0,116270.0,0.581]
[1757710668231,1.79623945,116280.0,116270.0,0.581]
[1757710669144,1.37705827,116280.0,116270.0,0.581]
[1757710669332,1.31536983,116280.0,116270.0,0.60216]
[1757710669535,1.73455101,116280.0,116270.0,0.60216]
[1757710671238,1.73455101,116280.0,116270.0,0.16188706]
[1757710671239,1.59478395,116280.0,116270.0,0.16188706]
[1757710671441,1.6718945,116280.0,116270.0,0.11544798]
[1757710671643,1.6718945,116280.0,116270.0,0.13756798]
[1757710671838,1.6718945,116280.0,116270.0,0.02212]
[1757710672036,1.39244038,116280.0,116270.0,0.16184706]
[1757710672340,1.6718945,116280.0,116270.0,0.16184706]
[1757710672545,0.03535,116260.0,116250.0,0.52264706]
[1757710672730,0.93669362,116260.0,116250.0,1.37210118]
[1757710674341,0.93669362,116260.0,116250.0,1.37410118]
[1757710674841,0.93669362,116260.0,116250.0,1.37510118]
[1757710680148,0.93669362,116260.0,116250.0,0.95592]
[1757710680350,0.93669362,116260.0,116250.0,1.37510118]
[1757710681244,0.93673362,116260.0,116250.0,1.37510118]
[1757710681443,0.87505532,116260.0,116250.0,1.37510118]
[1757710681645,0.92136732,116260.0,116250.0,0.95592]
[1757710681852,0.92136732,116260.0,116250.0,1.37510118]
[1757710682252,0.92136732,116260.0,116250.0,0.95592]
[1757710682458,0.92136732,116260.0,116250.0,1.37510118]
[1757710682750,0.92136732,116260.0,116250.0,1.62510118]
[1757710682751,0.07449732,116260.0,116250.0,1.62510118]
[1757710682951,0.07449732,116260.0,116250.0,2.07566118]
[1757710683148,0.07449732,116260.0,116250.0,2.43646118]
[1757710684338,0.10536925,116260.0,116250.0,2.43646118]
[1757710685549,0.05905725,116260.0,116250.0,2.43646118]
[1757710687353,0.03091193,116260.0,116250.0,2.43646118]
[1757710687951,0.05871495,116260.0,116250.0,2.43646118]
[1757710688248,0.05871495,116260.0,116250.0,1.62510118]
[1757710688452,0.05871495,116260.0,116250.0,2.43634118]
[1757710691256,0.02784471,116260.0,116250.0,2.43634118]
[1757710692247,0.02784471,116260.0,116250.0,1.62510118]
[1757710692448,0.02784471,116260.0,116250.0,2.43626118]
[1757710693146,0.02784471,116260.0,116250.0,1.62510118]
[1757710693352,0.04106471,116260.0,116250.0,1.20592]
[1757710693552,0.04106471,116260.0,116250.0,1.62510118]
[1757710694052,0.18079177,116260.0,116250.0,1.23537412]
[1757710694246,0.18079177,116260.0,116250.0,0.59512]
[1757710694247,0.48237589,116260.0,116250.0,0.59512]
[1757710694448,0.73237589,116260.0,116250.0,0.59512]
[1757710694654,1.09317589,116260.0,116250.0,0.59512]
[1757710694848,1.09317589,116260.0,116250.0,0.573]
[1757710695754,1.22022433,116260.0,116250.0,0.573]
[1757710697753,1.25109626,116260.0,116250.0,0.573]
[1757710698448,1.22022433,116260.0,116250.0,0.573]
[1757710701761,2.03122433,116260.0,116250.0,0.573]
[1757710702459,1.98500801,116260.0,116250.0,0.573]
[1757710704363,2.17149044,116260.0,116250.0,0.003]
[1757710705459,1.98500801,116260.0,116250.0,0.002]
[1757710705660,2.17149044,116260.0,116250.0,0.002]
[1757710706061,1.36049044,116260.0,116250.0,0.002]
[1757710706264,2.17141044,116260.0,116250.0,0.002]
[1757710706464,2.17141044,116260.0,116220.0,0.56500213]
[1757710706664,0.20039243,116230.0,116220.0,1.19695213]
[1757710706966,1.01131243,116230.0,116220.0,1.19695213]
[1757710707773,0.82483,116230.0,116220.0,1.19695213]
[1757710707958,0.83524939,116230.0,116220.0,1.19695213]
[1757710708866,0.83524939,116230.0,116220.0,1.0104697]
[1757710709065,0.83524939,116230.0,116220.0,1.19995213]
[1757710709467,0.83524939,116230.0,116220.0,1.20295213]
[1757710709768,1.04335182,116230.0,116220.0,1.09215213]
[1757710709968,1.1109634,116230.0,116220.0,0.9056697]
[1757710710168,1.1109634,116230.0,116220.0,1.09215213]
[1757710710659,1.4717634,116230.0,116220.0,0.6556697]
[1757710710867,1.4717634,116230.0,116220.0,0.6337197]
[1757710711068,1.28528097,116230.0,116220.0,0.616]
[1757710711260,1.4717634,116230.0,116220.0,0.616]
[1757710712162,1.4717634,116230.0,116220.0,0.615]
[1757710712769,1.49885267,116230.0,116220.0,0.611]
[1757710712972,1.49885267,116230.0,116220.0,0.614]
[1757710713667,1.49885267,116230.0,116220.0,0.613]
[1757710715062,1.6853351,116230.0,116220.0,0.613]
[1757710715970,0.50145024,116230.0,116220.0,0.613]
[1757710716163,1.49861267,116230.0,116220.0,0.613]
[1757710716670,1.31217024,116230.0,116220.0,0.63495]
[1757710716870,1.49865267,116230.0,116220.0,0.63495]
[1757710717066,0.68793267,116230.0,116220.0,0.63495]
[1757710717262,1.49861267,116230.0,116220.0,0.63495]
[1757710717462,0.68793267,116230.0,116220.0,0.63495]
[1757710717662,1.49861267,116230.0,116220.0,0.63495]
[1757710718659,1.49857267,116230.0,116220.0,0.63495]
[1757710718864,0.68793267,116230.0,116220.0,0.63495]
[1757710719158,1.49857267,116230.0,116220.0,0.63495]
[1757710720272,1.49853267,116230.0,116220.0,0.63495]